[Event "*** Titled Tuesday Blitz"]
[Site "Chess.com"]
[Date "2021.03.09"]
[Round "2"]
[White "Blitzking642"]
[Black "alexrustemov"]
[Result "0-1"]
[WhiteElo "2408"]
[BlackElo "2762"]
[TimeControl "180+1"]
[EndTime "10:18:35 PST"]
[Termination "alexrustemov won by resignation"]

1. c4 {[%clk 0:03:00.9]} 1... c5 {[%clk 0:02:57.7]} 2. Nc3 {[%clk 0:03:00]} 2...
g6 {[%clk 0:02:57]} 3. g3 {[%clk 0:02:59.1]} 3... Bg7 {[%clk 0:02:57.3]} 4. Bg2
{[%clk 0:02:59.6]} 4... Nc6 {[%clk 0:02:57.8]} 5. Nf3 {[%clk 0:02:59.2]} 5... b6
{[%clk 0:02:56.9]} 6. O-O {[%clk 0:02:54.1]} 6... Bb7 {[%clk 0:02:56.7]} 7. e3
{[%clk 0:02:43.6]} 7... Bxc3 {[%clk 0:02:56.6]} 8. bxc3 {[%clk 0:02:41.5]} 8...
d6 {[%clk 0:02:57.5]} 9. d4 {[%clk 0:02:40.5]} 9... Qc7 {[%clk 0:02:57]} 10. Nd2
{[%clk 0:02:33.6]} 10... Nf6 {[%clk 0:02:56.2]} 11. Bb2 {[%clk 0:02:31.4]} 11...
Nd7 {[%clk 0:02:52.1]} 12. e4 {[%clk 0:02:29.4]} 12... e5 {[%clk 0:02:47.8]} 13.
f4 {[%clk 0:02:20.9]} 13... O-O {[%clk 0:02:39.7]} 14. f5 {[%clk 0:02:04.3]}
14... f6 {[%clk 0:02:37]} 15. fxg6 {[%clk 0:01:56.9]} 15... hxg6 {[%clk
0:02:36.4]} 16. Qg4 {[%clk 0:01:48.9]} 16... Kg7 {[%clk 0:02:28.6]} 17. Rf2
{[%clk 0:01:43.4]} 17... Rf7 {[%clk 0:02:23.9]} 18. Raf1 {[%clk 0:01:39.2]}
18... Rh8 {[%clk 0:02:21.9]} 19. Nf3 {[%clk 0:01:34.4]} 19... Bc8 {[%clk
0:02:11.3]} 20. Nh4 {[%clk 0:01:31.4]} 20... Nf8 {[%clk 0:02:04.4]} 21. Nf5+
{[%clk 0:01:16.9]} 21... Kg8 {[%clk 0:02:03.3]} 22. Bc1 {[%clk 0:01:14.2]} 22...
Rfh7 {[%clk 0:01:46.4]} 23. h4 {[%clk 0:01:11.1]} 23... Na5 {[%clk 0:00:48.7]}
24. Bh3 {[%clk 0:01:07.5]} 24... Bd7 {[%clk 0:00:46.5]} 25. Qe2 {[%clk
0:01:04.6]} 25... gxf5 {[%clk 0:00:44.8]} 26. Bxf5 {[%clk 0:01:05.5]} 26... Rg7
{[%clk 0:00:37.5]} 27. Bxd7 {[%clk 0:00:31.6]} 27... Nxd7 {[%clk 0:00:38.4]} 28.
Rf3 {[%clk 0:00:24.8]} 28... cxd4 {[%clk 0:00:37.1]} 29. cxd4 {[%clk 0:00:24.3]}
29... Qxc4 {[%clk 0:00:37.7]} 30. Qh2 {[%clk 0:00:22.4]} 30... Qxd4+ {[%clk
0:00:34.1]} 31. Be3 {[%clk 0:00:22.2]} 31... Qxe4 {[%clk 0:00:33.9]} 32. Qh3
{[%clk 0:00:22.4]} 32... f5 {[%clk 0:00:27.8]} 33. Bg5 {[%clk 0:00:19]} 33...
Rxg5 {[%clk 0:00:23.1]} 0-1

[Event "*** Titled Tuesday Blitz"]
[Site "Chess.com"]
[Date "2021.03.09"]
[Round "2"]
[White "ErikRonka"]
[Black "attack2mateU"]
[Result "0-1"]
[WhiteElo "2399"]
[BlackElo "2727"]
[TimeControl "180+1"]
[EndTime "10:18:40 PST"]
[Termination "attack2mateU won by resignation"]

1. d4 {[%clk 0:03:00.9]} 1... Nf6 {[%clk 0:02:59.8]} 2. c4 {[%clk 0:03:01.2]}
2... g6 {[%clk 0:02:59.7]} 3. Nc3 {[%clk 0:03:01]} 3... d5 {[%clk 0:03:00.3]} 4.
Bf4 {[%clk 0:03:01.1]} 4... Bg7 {[%clk 0:02:59.2]} 5. Rc1 {[%clk 0:03:01.2]}
5... Nh5 {[%clk 0:02:57.8]} 6. Bg5 {[%clk 0:02:38.1]} 6... h6 {[%clk 0:02:56.4]}
7. Bh4 {[%clk 0:02:35]} 7... c5 {[%clk 0:02:54.8]} 8. e3 {[%clk 0:02:10.5]} 8...
cxd4 {[%clk 0:02:50.8]} 9. exd4 {[%clk 0:02:10.4]} 9... dxc4 {[%clk 0:02:41.3]}
10. Bxc4 {[%clk 0:01:43.2]} 10... O-O {[%clk 0:01:52]} 11. Nge2 {[%clk 0:01:36]}
11... Nc6 {[%clk 0:01:47.9]} 12. d5 {[%clk 0:01:14.2]} 12... Ne5 {[%clk
0:01:47.7]} 13. Bb3 {[%clk 0:01:09.2]} 13... Bf5 {[%clk 0:01:42.7]} 14. Bc2
{[%clk 0:00:51.1]} 14... Bxc2 {[%clk 0:01:38.1]} 15. Rxc2 {[%clk 0:00:52]} 15...
Qd7 {[%clk 0:01:05.2]} 16. O-O {[%clk 0:00:47.5]} 16... Rfe8 {[%clk 0:01:03.1]}
17. Bg3 {[%clk 0:00:28.4]} 17... Nxg3 {[%clk 0:01:02.6]} 18. Nxg3 {[%clk
0:00:29.3]} 18... b5 {[%clk 0:00:51.2]} 19. a3 {[%clk 0:00:28]} 19... a5 {[%clk
0:00:51]} 20. f4 {[%clk 0:00:23.4]} 20... Nc4 {[%clk 0:00:49.8]} 21. Qf3 {[%clk
0:00:20.6]} 21... b4 {[%clk 0:00:48.1]} 22. axb4 {[%clk 0:00:21.3]} 22... axb4
{[%clk 0:00:49]} 23. Nce4 {[%clk 0:00:21.7]} 23... Nd6 {[%clk 0:00:27.3]} 24. f5
{[%clk 0:00:20.2]} 24... Nxf5 {[%clk 0:00:26.9]} 25. Nxf5 {[%clk 0:00:17.7]}
25... Qxf5 {[%clk 0:00:27.6]} 26. Qxf5 {[%clk 0:00:17.1]} 26... gxf5 {[%clk
0:00:28.5]} 27. Rxf5 {[%clk 0:00:17.4]} 27... Ra2 {[%clk 0:00:28.7]} 28. Rc5
{[%clk 0:00:05.6]} 28... Bd4+ {[%clk 0:00:26.7]} 29. Kf1 {[%clk 0:00:05.3]}
29... Bxc5 {[%clk 0:00:25.1]} 30. Nxc5 {[%clk 0:00:06.2]} 30... Rxb2 {[%clk
0:00:24.7]} 31. Nd7 {[%clk 0:00:06.1]} 31... Ra8 {[%clk 0:00:24]} 0-1

[Event "*** Titled Tuesday Blitz"]
[Site "Chess.com"]
[Date "2021.03.09"]
[Round "2"]
[White "poneis_malditos"]
[Black "GMBenjaminFinegold"]
[Result "0-1"]
[WhiteElo "2323"]
[BlackElo "2609"]
[TimeControl "180+1"]
[EndTime "10:18:41 PST"]
[Termination "GMBenjaminFinegold won by checkmate"]

1. e4 {[%clk 0:03:00.9]} 1... c5 {[%clk 0:02:59.6]} 2. Nc3 {[%clk 0:03:00.6]}
2... Nc6 {[%clk 0:02:59.6]} 3. g3 {[%clk 0:03:01]} 3... h5 {[%clk 0:02:57.7]} 4.
h3 {[%clk 0:02:59.9]} 4... h4 {[%clk 0:02:57.8]} 5. g4 {[%clk 0:02:59.3]} 5...
e5 {[%clk 0:02:58]} 6. Bg2 {[%clk 0:02:59.7]} 6... Nge7 {[%clk 0:02:58.3]} 7. d3
{[%clk 0:03:00.2]} 7... Ng6 {[%clk 0:02:58.4]} 8. Nge2 {[%clk 0:02:59.6]} 8...
Be7 {[%clk 0:02:58.3]} 9. Nd5 {[%clk 0:02:59.5]} 9... O-O {[%clk 0:02:39.9]} 10.
c3 {[%clk 0:02:59.5]} 10... Bg5 {[%clk 0:02:38.4]} 11. O-O {[%clk 0:02:39.7]}
11... d6 {[%clk 0:02:35.9]} 12. f4 {[%clk 0:02:33.7]} 12... exf4 {[%clk
0:02:35.6]} 13. Bxf4 {[%clk 0:02:32.6]} 13... Nxf4 {[%clk 0:02:35.3]} 14. Nexf4
{[%clk 0:02:33.5]} 14... Be6 {[%clk 0:02:31.4]} 15. Ne3 {[%clk 0:02:18.6]} 15...
g6 {[%clk 0:02:18.8]} 16. Kh1 {[%clk 0:02:13.9]} 16... Qd7 {[%clk 0:02:06.1]}
17. d4 {[%clk 0:02:08.7]} 17... cxd4 {[%clk 0:02:03.5]} 18. cxd4 {[%clk
0:02:09.6]} 18... Rac8 {[%clk 0:01:28.3]} 19. d5 {[%clk 0:02:07.6]} 19... Ne5
{[%clk 0:01:28.8]} 20. dxe6 {[%clk 0:01:51.1]} 20... fxe6 {[%clk 0:01:29.7]} 21.
Nd3 {[%clk 0:01:50.4]} 21... Rxf1+ {[%clk 0:01:22.9]} 22. Bxf1 {[%clk
0:01:51.2]} 22... Qf7 {[%clk 0:01:09.3]} 23. Nxe5 {[%clk 0:01:34.2]} 23... dxe5
{[%clk 0:01:10.2]} 24. Nc4 {[%clk 0:01:33.5]} 24... Qf2 {[%clk 0:01:00.5]} 25.
Qe2 {[%clk 0:01:25.3]} 25... Qg3 {[%clk 0:00:52.8]} 26. Qg2 {[%clk 0:01:19.6]}
26... Qf4 {[%clk 0:00:50.9]} 27. Be2 {[%clk 0:01:04.4]} 27... b5 {[%clk
0:00:41.1]} 28. Rf1 {[%clk 0:01:01.9]} 28... Qg3 {[%clk 0:00:41.5]} 29. Qxg3
{[%clk 0:00:58.3]} 29... hxg3 {[%clk 0:00:42.4]} 30. Nxe5 {[%clk 0:00:54.1]}
30... Rc2 {[%clk 0:00:42.7]} 31. Re1 {[%clk 0:00:38.9]} 31... Bd2 {[%clk
0:00:32.1]} 32. Rd1 {[%clk 0:00:27.6]} 32... Bf4 {[%clk 0:00:27.5]} 33. Nxg6
{[%clk 0:00:23.1]} 33... Be3 {[%clk 0:00:14.8]} 34. Rd3 {[%clk 0:00:20.4]} 34...
Rxe2 {[%clk 0:00:13.9]} 35. Ne5 {[%clk 0:00:19.6]} 35... Rh2# {[%clk 0:00:12.8]}
0-1

[Event "*** Titled Tuesday Blitz"]
[Site "Chess.com"]
[Date "2021.03.09"]
[Round "2"]
[White "yoelpolanco"]
[Black "Niktlt"]
[Result "0-1"]
[WhiteElo "2192"]
[BlackElo "2431"]
[TimeControl "180+1"]
[EndTime "10:18:41 PST"]
[Termination "Niktlt won on time"]

1. d4 {[%clk 0:03:00.9]} 1... Nf6 {[%clk 0:02:59.8]} 2. Nf3 {[%clk 0:03:00.2]}
2... g6 {[%clk 0:03:00]} 3. c4 {[%clk 0:02:59.3]} 3... Bg7 {[%clk 0:03:00.3]} 4.
Nc3 {[%clk 0:02:59.8]} 4... O-O {[%clk 0:03:00.4]} 5. e4 {[%clk 0:02:59.4]} 5...
d6 {[%clk 0:03:00.6]} 6. Be2 {[%clk 0:02:59.7]} 6... Nbd7 {[%clk 0:03:00.5]} 7.
O-O {[%clk 0:02:49.2]} 7... e5 {[%clk 0:03:00.4]} 8. d5 {[%clk 0:02:45.4]} 8...
Nc5 {[%clk 0:03:00.2]} 9. Nd2 {[%clk 0:02:45.7]} 9... a5 {[%clk 0:02:58.2]} 10.
Qc2 {[%clk 0:02:44.1]} 10... Bh6 {[%clk 0:02:57.2]} 11. Nb3 {[%clk 0:02:41.5]}
11... Bxc1 {[%clk 0:02:55.6]} 12. Raxc1 {[%clk 0:02:41.3]} 12... b6 {[%clk
0:02:55.3]} 13. Nxc5 {[%clk 0:02:40.1]} 13... dxc5 {[%clk 0:02:56.2]} 14. Qd3
{[%clk 0:02:34.9]} 14... Ne8 {[%clk 0:02:56.1]} 15. Qg3 {[%clk 0:02:28.8]} 15...
Qe7 {[%clk 0:02:54.3]} 16. a4 {[%clk 0:02:26.7]} 16... Nd6 {[%clk 0:02:53.3]}
17. b3 {[%clk 0:02:26.5]} 17... f5 {[%clk 0:02:52.4]} 18. f4 {[%clk 0:02:19.6]}
18... exf4 {[%clk 0:02:50.7]} 19. Rxf4 {[%clk 0:02:17.6]} 19... Bd7 {[%clk
0:02:33.5]} 20. exf5 {[%clk 0:02:06.5]} 20... Nxf5 {[%clk 0:02:31]} 21. Qd3
{[%clk 0:02:04.2]} 21... Nd4 {[%clk 0:02:25.6]} 22. Rcf1 {[%clk 0:01:54]} 22...
Rxf4 {[%clk 0:02:20.4]} 23. Rxf4 {[%clk 0:01:53.5]} 23... Bf5 {[%clk 0:02:18.9]}
24. Qd2 {[%clk 0:01:24.9]} 24... Nxb3 {[%clk 0:02:13.3]} 25. d6 {[%clk 0:01:19]}
25... Qxd6 {[%clk 0:01:46]} 26. Qxd6 {[%clk 0:01:17.3]} 26... cxd6 {[%clk
0:01:46.9]} 27. Nd5 {[%clk 0:01:15.2]} 27... Nd4 {[%clk 0:01:40.1]} 28. Bf1
{[%clk 0:01:07.6]} 28... Kg7 {[%clk 0:01:35.7]} 29. Nxb6 {[%clk 0:01:06.8]}
29... Rb8 {[%clk 0:01:35.4]} 30. Nd5 {[%clk 0:01:02.6]} 30... Rb1 {[%clk
0:01:34.2]} 31. Kf2 {[%clk 0:01:01.4]} 31... Rb2+ {[%clk 0:01:33.8]} 32. Kg1
{[%clk 0:00:57]} 32... Ra2 {[%clk 0:01:31.7]} 33. g4 {[%clk 0:00:56.7]} 33...
Be6 {[%clk 0:01:29.2]} 34. Nc7 {[%clk 0:00:55.5]} 34... Bf7 {[%clk 0:01:15.5]}
35. h4 {[%clk 0:00:48.8]} 35... Rxa4 {[%clk 0:01:10.3]} 36. h5 {[%clk
0:00:48.9]} 36... gxh5 {[%clk 0:01:07.4]} 37. gxh5 {[%clk 0:00:48.4]} 37... Bxh5
{[%clk 0:01:06.3]} 38. Bd3 {[%clk 0:00:38.2]} 38... Ra2 {[%clk 0:00:58.9]} 39.
Kf1 {[%clk 0:00:32.4]} 39... Bg6 {[%clk 0:00:55.6]} 40. Bxg6 {[%clk 0:00:29.3]}
40... Kxg6 {[%clk 0:00:56.5]} 41. Ne8 {[%clk 0:00:28.5]} 41... Nf5 {[%clk
0:00:55.8]} 42. Rg4+ {[%clk 0:00:26.5]} 42... Kf7 {[%clk 0:00:55.8]} 43. Nc7
{[%clk 0:00:26.1]} 43... Ne3+ {[%clk 0:00:55.6]} 0-1

[Event "*** Titled Tuesday Blitz"]
[Site "Chess.com"]
[Date "2021.03.09"]
[Round "2"]
[White "Grieve72"]
[Black "fabianvivasz"]
[Result "1-0"]
[WhiteElo "2530"]
[BlackElo "2297"]
[TimeControl "180+1"]
[EndTime "10:18:44 PST"]
[Termination "Grieve72 won on time"]

1. e4 {[%clk 0:03:00.9]} 1... e5 {[%clk 0:02:59.5]} 2. Nf3 {[%clk 0:03:00.9]}
2... Nc6 {[%clk 0:02:58]} 3. Bc4 {[%clk 0:03:01.4]} 3... Nf6 {[%clk 0:02:57.8]}
4. d3 {[%clk 0:03:01.2]} 4... Bc5 {[%clk 0:02:56.7]} 5. O-O {[%clk 0:03:01]}
5... O-O {[%clk 0:02:57]} 6. Nbd2 {[%clk 0:03:00.9]} 6... d6 {[%clk 0:02:51.4]}
7. a4 {[%clk 0:02:59.6]} 7... a5 {[%clk 0:02:48.3]} 8. c3 {[%clk 0:02:58.2]}
8... Kh8 {[%clk 0:02:36.7]} 9. h3 {[%clk 0:02:49.2]} 9... Ng8 {[%clk 0:02:33]}
10. Re1 {[%clk 0:02:49.1]} 10... f5 {[%clk 0:02:31.5]} 11. exf5 {[%clk
0:02:49.2]} 11... Bxf5 {[%clk 0:02:29.8]} 12. Ne4 {[%clk 0:02:45.6]} 12... Ba7
{[%clk 0:02:27.9]} 13. Bg5 {[%clk 0:02:36.9]} 13... Qe8 {[%clk 0:02:26]} 14. Ng3
{[%clk 0:02:37.1]} 14... Be6 {[%clk 0:02:06.5]} 15. Bxe6 {[%clk 0:02:28.6]}
15... Qxe6 {[%clk 0:02:07.4]} 16. d4 {[%clk 0:02:29.3]} 16... Qg6 {[%clk
0:02:03.6]} 17. Be3 {[%clk 0:02:17.4]} 17... e4 {[%clk 0:01:54.1]} 18. Nh4
{[%clk 0:02:17.3]} 18... Qf6 {[%clk 0:01:51.8]} 19. Qg4 {[%clk 0:01:59.1]} 19...
d5 {[%clk 0:01:45.8]} 20. f3 {[%clk 0:01:38.4]} 20... exf3 {[%clk 0:01:18.9]}
21. Nxf3 {[%clk 0:01:37.5]} 21... Rae8 {[%clk 0:01:10.2]} 22. Bg5 {[%clk
0:01:29]} 22... Qg6 {[%clk 0:01:03.5]} 23. Nh4 {[%clk 0:00:52.2]} 23... Qc2
{[%clk 0:01:02.1]} 24. Ngf5 {[%clk 0:00:52.4]} 24... Re4 {[%clk 0:00:09.6]} 25.
Qh5 {[%clk 0:00:30.4]} 25... Nge7 {[%clk 0:00:02]} 26. Nxe7 {[%clk 0:00:15.8]}
26... Qf2+ {[%clk 0:00:01.3]} 27. Kh2 {[%clk 0:00:11.7]} 1-0

[Event "*** Titled Tuesday Blitz"]
[Site "Chess.com"]
[Date "2021.03.09"]
[Round "2"]
[White "StockholmMissile"]
[Black "Zhigalko_Sergei"]
[Result "0-1"]
[WhiteElo "2573"]
[BlackElo "2932"]
[TimeControl "180+1"]
[EndTime "10:18:46 PST"]
[Termination "Zhigalko_Sergei won by resignation"]

1. d4 {[%clk 0:03:00.9]} 1... Nf6 {[%clk 0:03:00]} 2. c4 {[%clk 0:02:59.9]} 2...
e6 {[%clk 0:03:00.3]} 3. Nf3 {[%clk 0:02:59.2]} 3... b6 {[%clk 0:03:00.4]} 4. a3
{[%clk 0:02:58.4]} 4... Ba6 {[%clk 0:03:00.3]} 5. Qc2 {[%clk 0:02:57.9]} 5...
Bb7 {[%clk 0:02:59.9]} 6. Nc3 {[%clk 0:02:57.3]} 6... c5 {[%clk 0:02:58.8]} 7.
e4 {[%clk 0:02:57]} 7... cxd4 {[%clk 0:02:58.8]} 8. Nxd4 {[%clk 0:02:57.9]} 8...
Nc6 {[%clk 0:02:59.3]} 9. Nf3 {[%clk 0:02:53.9]} 9... Qc7 {[%clk 0:02:36.7]} 10.
Bd3 {[%clk 0:02:39.2]} 10... Ng4 {[%clk 0:02:25.3]} 11. b3 {[%clk 0:02:19.6]}
11... Bc5 {[%clk 0:02:22.7]} 12. Nd1 {[%clk 0:01:54.6]} 12... O-O {[%clk
0:01:49.4]} 13. Bb2 {[%clk 0:01:51.9]} 13... Rac8 {[%clk 0:01:22.6]} 14. Qc3
{[%clk 0:01:24.7]} 14... f6 {[%clk 0:01:18.7]} 15. Qd2 {[%clk 0:01:11.6]} 15...
Nce5 {[%clk 0:01:15.3]} 16. h3 {[%clk 0:00:52.2]} 16... Nxf3+ {[%clk 0:01:04.2]}
17. gxf3 {[%clk 0:00:53.1]} 17... Ne5 {[%clk 0:01:02.7]} 18. Be2 {[%clk
0:00:50.2]} 18... d5 {[%clk 0:00:51]} 19. cxd5 {[%clk 0:00:41.7]} 19... exd5
{[%clk 0:00:50.2]} 20. exd5 {[%clk 0:00:42.6]} 20... Rfe8 {[%clk 0:00:34.7]} 21.
Ne3 {[%clk 0:00:39.4]} 21... Ng6 {[%clk 0:00:34.9]} 22. b4 {[%clk 0:00:36.9]}
22... Bd6 {[%clk 0:00:28.2]} 23. Rg1 {[%clk 0:00:19.8]} 23... Qd7 {[%clk
0:00:25.6]} 24. Bd4 {[%clk 0:00:16]} 24... Qxh3 {[%clk 0:00:21]} 25. Bb5 {[%clk
0:00:16]} 25... Re7 {[%clk 0:00:19.5]} 26. Bd3 {[%clk 0:00:15.4]} 26... Qxf3
{[%clk 0:00:18.9]} 27. Bxg6 {[%clk 0:00:14.9]} 27... hxg6 {[%clk 0:00:19.8]} 28.
Rxg6 {[%clk 0:00:14.6]} 28... Rce8 {[%clk 0:00:13.1]} 29. Qe2 {[%clk 0:00:09.4]}
29... Qe4 {[%clk 0:00:11.9]} 30. O-O-O {[%clk 0:00:08.7]} 30... Qxg6 {[%clk
0:00:11.9]} 0-1

[Event "*** Titled Tuesday Blitz"]
[Site "Chess.com"]
[Date "2021.03.09"]
[Round "2"]
[White "annacramling"]
[Black "Ghost_Pepper"]
[Result "0-1"]
[WhiteElo "2028"]
[BlackElo "2382"]
[TimeControl "180+1"]
[EndTime "10:18:46 PST"]
[Termination "Ghost_Pepper won by resignation"]

1. d4 {[%clk 0:03:00.9]} 1... Nf6 {[%clk 0:02:59.5]} 2. c4 {[%clk 0:03:00.6]}
2... g6 {[%clk 0:03:00]} 3. Nc3 {[%clk 0:02:59.8]} 3... d5 {[%clk 0:02:59.9]} 4.
cxd5 {[%clk 0:03:00.2]} 4... Nxd5 {[%clk 0:03:00.6]} 5. e4 {[%clk 0:03:00.8]}
5... Nxc3 {[%clk 0:03:01]} 6. bxc3 {[%clk 0:03:01.7]} 6... Bg7 {[%clk
0:03:00.4]} 7. Qa4+ {[%clk 0:03:01.9]} 7... Bd7 {[%clk 0:02:58.8]} 8. Qa3 {[%clk
0:03:01.7]} 8... O-O {[%clk 0:02:49.4]} 9. Bg5 {[%clk 0:03:01.3]} 9... Re8
{[%clk 0:02:48.6]} 10. Nf3 {[%clk 0:03:00.5]} 10... b6 {[%clk 0:02:46.6]} 11.
Be2 {[%clk 0:02:47]} 11... c5 {[%clk 0:02:01]} 12. O-O {[%clk 0:02:37.8]} 12...
cxd4 {[%clk 0:01:57.3]} 13. cxd4 {[%clk 0:02:38.7]} 13... Bc6 {[%clk 0:01:53.6]}
14. Qe3 {[%clk 0:02:16.8]} 14... Nd7 {[%clk 0:01:22.4]} 15. Rac1 {[%clk
0:02:10.6]} 15... Bb7 {[%clk 0:01:20.1]} 16. Rfd1 {[%clk 0:02:07.9]} 16... Rc8
{[%clk 0:01:19.2]} 17. Bb5 {[%clk 0:01:56.5]} 17... a6 {[%clk 0:01:17.3]} 18.
Rxc8 {[%clk 0:01:43.9]} 18... Qxc8 {[%clk 0:00:59.3]} 19. Rc1 {[%clk 0:01:40.7]}
19... Qd8 {[%clk 0:00:59.4]} 20. Bc6 {[%clk 0:01:38.1]} 20... Bxc6 {[%clk
0:00:46.9]} 21. Rxc6 {[%clk 0:01:39]} 21... Nb8 {[%clk 0:00:43.8]} 22. Rc2
{[%clk 0:01:30.8]} 22... Qd7 {[%clk 0:00:43.4]} 23. d5 {[%clk 0:00:48.3]} 23...
e6 {[%clk 0:00:38]} 24. Rd2 {[%clk 0:00:38.7]} 24... exd5 {[%clk 0:00:37.8]} 25.
Rxd5 {[%clk 0:00:35.8]} 25... Qa4 {[%clk 0:00:34.4]} 26. h3 {[%clk 0:00:26.5]}
26... b5 {[%clk 0:00:31.8]} 27. e5 {[%clk 0:00:23.9]} 27... Qxa2 {[%clk
0:00:29]} 28. Rc5 {[%clk 0:00:19.8]} 28... Nd7 {[%clk 0:00:28.4]} 29. Rc7 {[%clk
0:00:16.6]} 29... Nxe5 {[%clk 0:00:28]} 30. Qf4 {[%clk 0:00:07.4]} 30... Nxf3+
{[%clk 0:00:26.4]} 31. Qxf3 {[%clk 0:00:07.3]} 31... Be5 {[%clk 0:00:24.5]} 32.
Ra7 {[%clk 0:00:06.2]} 32... Qa1+ {[%clk 0:00:24]} 0-1

[Event "*** Titled Tuesday Blitz"]
[Site "Chess.com"]
[Date "2021.03.09"]
[Round "2"]
[White "PotapovaM"]
[Black "ckgchess"]
[Result "0-1"]
[WhiteElo "2518"]
[BlackElo "2782"]
[TimeControl "180+1"]
[EndTime "10:18:47 PST"]
[Termination "ckgchess won by resignation"]

1. d4 {[%clk 0:03:00.9]} 1... Nf6 {[%clk 0:02:59.5]} 2. c4 {[%clk 0:02:59]} 2...
e6 {[%clk 0:02:58.4]} 3. Nf3 {[%clk 0:02:58.4]} 3... d5 {[%clk 0:02:57.8]} 4.
Nc3 {[%clk 0:02:57.2]} 4... c6 {[%clk 0:02:57.1]} 5. Bg5 {[%clk 0:02:56.9]} 5...
dxc4 {[%clk 0:02:55.1]} 6. e4 {[%clk 0:02:56.6]} 6... b5 {[%clk 0:02:53.4]} 7.
e5 {[%clk 0:02:56.5]} 7... h6 {[%clk 0:02:53.6]} 8. Bh4 {[%clk 0:02:57.2]} 8...
g5 {[%clk 0:02:53.6]} 9. Nxg5 {[%clk 0:02:57.9]} 9... hxg5 {[%clk 0:02:54.5]}
10. Bxg5 {[%clk 0:02:58.8]} 10... Be7 {[%clk 0:02:52.8]} 11. exf6 {[%clk
0:02:58.9]} 11... Bxf6 {[%clk 0:02:53.7]} 12. Bxf6 {[%clk 0:02:59.5]} 12... Qxf6
{[%clk 0:02:54.6]} 13. g3 {[%clk 0:03:00.2]} 13... Na6 {[%clk 0:02:54.1]} 14.
Bg2 {[%clk 0:03:00]} 14... Bb7 {[%clk 0:02:52.8]} 15. Nxb5 {[%clk 0:02:37.6]}
15... O-O-O {[%clk 0:02:50.6]} 16. Qa4 {[%clk 0:02:37.1]} 16... Kb8 {[%clk
0:01:49]} 17. Nc3 {[%clk 0:01:51.5]} 17... Rxd4 {[%clk 0:01:41.6]} 18. O-O
{[%clk 0:01:42.1]} 18... Nc5 {[%clk 0:01:37.6]} 19. Qa3 {[%clk 0:01:17.2]} 19...
Nd3 {[%clk 0:01:37.3]} 20. Ne4 {[%clk 0:01:07.2]} 20... Qh6 {[%clk 0:01:15.2]}
21. h4 {[%clk 0:01:05.7]} 21... f5 {[%clk 0:01:14.8]} 22. Ng5 {[%clk 0:00:56.1]}
22... Qf6 {[%clk 0:00:51.7]} 23. Nf3 {[%clk 0:00:46.8]} 23... Rg4 {[%clk
0:00:49.3]} 24. b3 {[%clk 0:00:43.6]} 24... e5 {[%clk 0:00:35.3]} 25. bxc4
{[%clk 0:00:42.3]} 25... e4 {[%clk 0:00:35.6]} 26. Ne1 {[%clk 0:00:33.6]} 26...
Nf4 {[%clk 0:00:26.8]} 27. gxf4 {[%clk 0:00:12.4]} 27... Qxa1 {[%clk 0:00:26.6]}
28. Nf3 {[%clk 0:00:09.4]} 28... Rxg2+ {[%clk 0:00:24.7]} 29. Kxg2 {[%clk
0:00:09]} 29... exf3+ {[%clk 0:00:25.1]} 30. Qxf3 {[%clk 0:00:08.5]} 30... Rg8+
{[%clk 0:00:21.8]} 0-1

[Event "*** Titled Tuesday Blitz"]
[Site "Chess.com"]
[Date "2021.03.09"]
[Round "2"]
[White "jposthuma"]
[Black "kobemagic"]
[Result "1-0"]
[WhiteElo "2659"]
[BlackElo "2430"]
[TimeControl "180+1"]
[EndTime "10:18:47 PST"]
[Termination "jposthuma won by resignation"]

1. d4 {[%clk 0:03:00.9]} 1... Nf6 {[%clk 0:02:59.6]} 2. c4 {[%clk 0:03:01.1]}
2... c5 {[%clk 0:02:59.7]} 3. Nf3 {[%clk 0:02:58.6]} 3... cxd4 {[%clk
0:02:59.2]} 4. Nxd4 {[%clk 0:02:59.5]} 4... Nc6 {[%clk 0:02:58.5]} 5. Nc3 {[%clk
0:02:58.5]} 5... g6 {[%clk 0:02:57.7]} 6. g3 {[%clk 0:02:58]} 6... Nxd4 {[%clk
0:02:52.7]} 7. Qxd4 {[%clk 0:02:57.6]} 7... Bg7 {[%clk 0:02:53.6]} 8. Bg2 {[%clk
0:02:57.5]} 8... O-O {[%clk 0:02:54]} 9. O-O {[%clk 0:02:57.4]} 9... d6 {[%clk
0:02:54.7]} 10. Qh4 {[%clk 0:02:47]} 10... a6 {[%clk 0:02:51.4]} 11. Bg5 {[%clk
0:02:40]} 11... Rb8 {[%clk 0:02:46.4]} 12. Rfd1 {[%clk 0:02:10.6]} 12... Qa5
{[%clk 0:02:36.2]} 13. Nd5 {[%clk 0:02:04.5]} 13... Nxd5 {[%clk 0:02:21.5]} 14.
Rxd5 {[%clk 0:02:03.7]} 14... Qb4 {[%clk 0:01:58.4]} 15. Bxe7 {[%clk 0:01:57.3]}
15... Qxb2 {[%clk 0:01:52.3]} 16. Rad1 {[%clk 0:01:57.3]} 16... Re8 {[%clk
0:01:46.9]} 17. R5d2 {[%clk 0:01:38.4]} 17... Qc3 {[%clk 0:01:32.4]} 18. Bxd6
{[%clk 0:01:32.2]} 18... Ra8 {[%clk 0:01:31.7]} 19. Bc5 {[%clk 0:00:58.4]} 19...
Rb8 {[%clk 0:01:12.1]} 20. Ba7 {[%clk 0:00:49.7]} 20... Ra8 {[%clk 0:01:11.5]}
21. Bb6 {[%clk 0:00:39.6]} 21... Be6 {[%clk 0:01:04.6]} 22. c5 {[%clk
0:00:37.7]} 22... Bc4 {[%clk 0:00:42.1]} 23. Bxb7 {[%clk 0:00:31.6]} 23... Bxe2
{[%clk 0:00:38.7]} 24. Rxe2 {[%clk 0:00:20.2]} 24... Rxe2 {[%clk 0:00:37.1]} 25.
Bxa8 {[%clk 0:00:18]} 25... Bf6 {[%clk 0:00:14.9]} 26. Qg4 {[%clk 0:00:15.2]}
26... Re1+ {[%clk 0:00:12.2]} 27. Rxe1 {[%clk 0:00:14.7]} 27... Qxe1+ {[%clk
0:00:13.1]} 28. Kg2 {[%clk 0:00:15.3]} 28... Qd2 {[%clk 0:00:12.1]} 29. Qf3
{[%clk 0:00:11.8]} 29... Bd4 {[%clk 0:00:10.5]} 30. Bd5 {[%clk 0:00:11.6]} 30...
Bxf2 {[%clk 0:00:10.3]} 31. Qxf7+ {[%clk 0:00:10.1]} 1-0